Workbook

Sheet МАЛЬЧИКИ 2006-07г.р.
A1: ПЕРВЕНСТВО ДЮСШ "ПРИЗ ДЕДА МОРОЗА" ТЕХНИЧЕСКИЕ РЕЗУЛЬТАТЫ МАЛЬЧИКИ 2006-2007 г.р. 05/01/2018
A2: место | B2: Фамилия Имя | C2: год рожд. | D2: Отжимания (1'кол-во) | E2: место | F2: м | G2: очки | H2: Прыжок с места (3раза см) | I2: м | J2: очки | K2: очки | L2: Тяга лёжа (1'x20кг кол-во) | M2: м | N2: очки | O2: Подъём ног (30"кол-во) | P2: м | Q2: очки | R2: сумма очков
A3: 1 | B3: Калашников Арсений | C3: 2006 | D3: 52 | F3: 1 | G3: 1 | H3: 181 | I3: 6 | K3: 6 | L3: 45 | M3: 4 | N3: 4 | O3: 25 | P3: 4-6 | Q3: 5 | R3: =SUM(G3+K3+N3+Q3) -> 16
A4: 2 | B4: Ахмадуллин Инсаф | C4: 2006 | D4: 46 | F4: 2-3 | G4: 2,5 | H4: 184 | I4: 4 | K4: 4 | L4: 46 | M4: 3 | N4: 3 | O4: 24 | P4: 7-8 | Q4: 7,5 | R4: 17
A5: 3 | B5: Миннибаев Эрик | C5: 2006 | D5: 41 | F5: 5 | G5: 5 | H5: 183 | I5: 5 | K5: 5 | L5: 37 | M5: 5-8 | N5: 6.5 | O5: 26 | P5: 3 | Q5: 3 | R5: 19.5
A6: 4 | B6: Гафаров Рафаэль | C6: 2006 | D6: 29 | F6: 12-13 | G6: 12,5 | H6: 180 | I6: 7 | K6: 7 | L6: 37 | M6: 5-8 | N6: 6.5 | O6: 25 | P6: 4-6 | Q6: 5 | R6: 31
A7: 5 | B7: Файзуллин Глеб | C7: 2007 | D7: 46 | F7: 2-3 | G7: 2.5 | H7: 186 | I7: 2 | K7: 2 | L7: 13 | M7: 27-28 | N7: 27.5 | O7: 27 | P7: 2 | Q7: 2 | R7: 34
A8: 6 | B8: Кузнецов Данил | C8: 2007 | D8: 40 | F8: 6 | G8: 6 | H8: 155 | I8: 19 | K8: 19 | L8: 35 | M8: 9 | N8: 9 | O8: 29 | P8: 1 | Q8: 1 | R8: 35
A9: 7 | B9: Фазылзянов Камиль | C9: 2006 | D9: 20 | F9: 21 | G9: 21 | H9: 188 | I9: 1 | K9: 1 | L9: 33 | M9: 11-12 | N9: 11.5 | O9: 25 | P9: 4-6 | Q9: 5 | R9: 38.5
A10: 8 | B10: Калимуллин Ильдар | C10: 2006 | D10: 37 | F10: 8 | G10: 8 | H10: 147 | I10: 23-24 | K10: 23.5 | L10: 49 | M10: 2 | N10: 2 | O10: 23 | P10: 9-10 | Q10: 9,5 | R10: 43
A11: 9 | B11: Мухаметсадыков Булат | C11: 2006 | D11: 30 | F11: 11 | G11: 11 | H11: 174 | I11: 11 | K11: 11 | L11: 26 | M11: 17 | N11: 17 | O11: 21 | P11: 12-14 | Q11: 13 | R11: 52
A12: 10 | B12: Галимзянов Сайдар | C12: 2007 | D12: 44 | F12: 4 | G12: 4 | H12: 177 | I12: 8-9 | K12: 8.5 | L12: 24 | M12: 20-21 | N12: 21.5 | O12: 18 | P12: 17-20 | Q12: 18,5 | R12: 52.5
A13: 11 | B13: Ризванов Данияр | C13: 2006 | D13: 33 | F13: 9 | G13: 9 | H13: 185 | I13: 3 | K13: 3 | L13: 21 | M13: 23 | N13: 23 | O13: 18 | P13: 17-20 | Q13: 18,5 | R13: 53.5
A14: 12 | B14: Богданов Артур | C14: 2006 | D14: 23 | F14: 17 | G14: 17 | H14: 176 | I14: 10 | K14: 10 | L14: 28 | M14: 16 | N14: 16 | O14: 21 | P14: 12-14 | Q14: 13 | R14: 56
A15: 13 | B15: Ялаев Асгат | C15: 2007 | D15: 27 | F15: 16 | G15: 16 | H15: 167 | I15: 12 | K15: 12 | L15: 34 | M15: 10 | N15: 10 | O15: 18 | P15: 17-20 | Q15: 18,5 | R15: 56.5
A16: 14 | B16: Мишин Дмитрий | C16: 2006 | D16: 32 | F16: 10 | G16: 10 | H16: 164 | I16: 14 | K16: 14 | L16: 30 | M16: 14 | N16: 14 | O16: 17 | P16: 21-23 | Q16: 21,5 | R16: 59.5
A17: 15-16 | B17: Воробьёв Михаил | C17: 2006 | D17: 28 | F17: 14-15 | G17: 14,5 | H17: 144 | I17: 26 | K17: 26 | L17: 31 | M17: 13 | N17: 13 | O17: 24 | P17: 7-8 | Q17: 7,5 | R17: 61
A18: 15-16 | B18: Ахметзянов Альфред | C18: 2007 | D18: 17 | F18: 24-25 | G18: 24,5 | H18: 177 | I18: 8-9 | K18: 8.5 | L18: 25 | M18: 18-19 | N18: 18.5 | O18: 23 | P18: 9-10 | Q18: 9,5 | R18: 61
A19: 17 | B19: Магсумов Ислам | C19: 2006 | D19: 39 | F19: 7 | G19: 7 | H19: 158 | I19: 16-17 | K19: 16.5 | L19: 17 | M19: 25 | N19: 25 | O19: 21 | P19: 12-14 | Q19: 13 | R19: 61.5
A20: 18-19 | B20: Николаев Алексей | C20: 2007 | D20: 12 | F20: 27 | G20: 27 | H20: 165 | I20: 13 | K20: 13 | L20: 33 | M20: 11-12 | N20: 11.5 | O20: 22 | P20: 11 | Q20: 11 | R20: 62.5
A21: 18-19 | B21: Сибгатов Карим | C21: 2007 | D21: 29 | F21: 12-13 | G21: 12.5 | H21: 162 | I21: 15 | K21: 15 | L21: 37 | M21: 5-8 | N21: 6.5 | O21: 11 | P21: 28-29 | Q21: 28,5 | R21: 62.5
A22: 20 | B22: Ахметов Александр | C22: 2006 | D22: 19 | F22: 22-23 | G22: 22,5 | H22: 151 | I22: 21 | K22: 21 | L22: 37 | M22: 5-8 | N22: 6.5 | O22: 18 | P22: 17-20 | Q22: 18,5 | R22: 68.5
A23: 21 | B23: Богачёв Матвей | C23: 2007 | D23: 21 | F23: 20 | G23: 20 | H23: 158 | I23: 16-17 | K23: 16.5 | L23: 29 | M23: 15 | N23: 15 | O23: 13 | P23: 25-26 | Q23: 25,5 | R23: 77
A24: 22 | B24: Габдрахманов Амир | C24: 2007 | D24: 28 | F24: 14-15 | G24: 14,5 | H24: 147 | I24: 23-24 | K24: 23.5 | L24: 24 | M24: 20-21 | N24: 21.5 | O24: 17 | P24: 21-23 | Q24: 22 | R24: 81.5
A25: 23 | B25: Елькин Илья | C25: 2006 | D25: 5 | F25: 29 | G25: 29 | H25: 133 | I25: 28 | K25: 28 | L25: 50 | M25: 1 | N25: 1 | O25: 15 | P25: 24 | Q25: 24 | R25: 82
A26: 24 | B26: Фатхуллин Иннель | C26: 2007 | D26: 16 | F26: 26 | G26: 26 | H26: 150 | I26: 22 | K26: 22 | L26: 22 | M26: 22 | N26: 22 | O26: 20 | P26: 15-16 | Q26: 15,5 | R26: 85.5
A27: 25 | B27: Павлов Родион | C27: 2007 | D27: 22 | F27: 18-19 | G27: 18.5 | H27: 146 | I27: 25 | K27: 25 | L27: 25 | M27: 18 | N27: 18 | O27: 12 | P27: 27 | Q27: 27 | R27: 88.5
A28: 26 | B28: Валиев Рамиль | C28: 2007 | D28: 19 | F28: 22-23 | G28: 22.5 | H28: 157 | I28: 18 | K28: 18 | L28: 16 | M28: 26 | N28: 26 | O28: 13 | P28: 25-26 | Q28: 25,5 | R28: 92
A29: 27 | B29: Гараев Карим | C29: 2006 | D29: 22 | F29: 18-19 | G29: 18,5 | H29: 140 | I29: 27 | K29: 27 | L29: 13 | M29: 27-28 | N29: 27.5 | O29: 17 | P29: 21-23 | Q29: 22 | R29: 95
A30: 28 | B30: Гришин Михаил | C30: 2006 | D30: 7 | F30: 28 | G30: 28 | H30: 152 | I30: 20 | K30: 20 | L30: 7 | M30: 29 | N30: 29 | O30: 11 | P30: 28-29 | Q30: 28,5 | R30: 105.5
A31: 29 | B31: Яшин Артём | C31: 2007 | D31: 1 | F31: 30 | G31: 30 | H31: 94 | I31: 29 | K31: 29 | L31: 20 | M31: 24 | N31: 24 | O31: 6 | P31: 30 | Q31: 30 | R31: =SUM(G31+K31+N31+Q31) -> 113
A32: 30 | B32: Фаттахов Камиль | C32: 2006 | D32: 17 | F32: 24-25 | G32: 24.5 | H32: 0 | I32: 0 | K32: 100 | L32: 0 | M32: 0 | N32: 100 | O32: 20 | P32: 15-16 | Q32: 15,5 | R32: 240
B37: Главный судья соревнований | K37: Беляков В.А.
B38: Главный секретарь соревнований | K38: Камалетдинов Т.О.

Sheet ДЕВОЧКИ 2006-07 г.
A1: ПЕРВЕНСТВО ДЮСШ "ПРИЗ ДЕДА МОРОЗА" ТЕХНИЧЕСКИЕ РЕЗУЛЬТАТЫ ДЕВОЧКИ 2006-2007 г.р. 05/01/2018
A2: место | B2: Фамилия Имя | C2: год рожд. | D2: Отжимания (1'кол-во) | E2: место | F2: м | G2: очки | H2: Прыжок с места (3раза см) | I2: м | J2: очки | K2: очки | L2: Тяга лёжа (1'x20кг кол-во) | M2: м | N2: очки | O2: Подъём ног (30"кол-во) | P2: м | Q2: очки | R2: сумма очков
A3: 1 | B3: Попова Анна | C3: 2006 | D3: 18 | F3: 1 | G3: 1 | H3: 197 | I3: 1 | K3: 1 | L3: 37 | M3: 2 | N3: 2 | O3: 20 | P3: 2 | Q3: 2 | R3: =SUM(G3+K3+N3+Q3) -> 6
A4: 2 | B4: Чершнева Кристина | C4: 2006 | D4: 5 | F4: 3 | G4: 3 | H4: 178 | I4: 2 | K4: 2 | L4: 52 | M4: 1 | N4: 1 | O4: 22 | P4: 1 | Q4: 1 | R4: =SUM(G4+K4+N4+Q4) -> 7
A5: 3 | B5: Деманова Елена | C5: 2007 | D5: 14 | F5: 2 | G5: 2 | H5: 114 | I5: 3 | K5: 3 | L5: 0 | N5: 100 | O5: 11 | P5: 3 | Q5: 3 | R5: 108
A6: 4 | B6: Алашеевская Екатерина | C6: 2006 | D6: 0 | F6: 0 | G6: 100 | H6: 113 | I6: 4 | K6: 4 | L6: 36 | M6: 3 | N6: 3 | O6: 5 | P6: 4 | Q6: 4 | R6: 111
B39: Главный судья соревнований | K39: Беляков В.А.
B40: Главный секретарь соревнований | K40: Камалетдинов Т.О.

Sheet ЮНОШИ 2004-05 г.
A1: ПЕРВЕНСТВО ДЮСШ "ПРИЗ ДЕДА МОРОЗА" ТЕХНИЧЕСКИЕ РЕЗУЛЬТАТЫ ЮНОШИ 2004-2005 г.р. 05/01/2018
A2: место | B2: Фамилия Имя | C2: год рожд. | D2: Жим лёжа (1'x25кг кол-во) | E2: место | F2: м | G2: очки | H2: Прыжок с места (3раза см) | I2: м | J2: очки | K2: очки | L2: Тяга лёжа (1'x25кг кол-во) | M2: м | N2: очки | O2: Подъём ног (1'кол-во) | P2: м | Q2: очки | R2: сумма очков
A3: 1 | B3: Лёвин Никита | C3: 2004 | D3: 77 | F3: 3 | G3: 3 | H3: 247 | I3: 1 | K3: 1 | L3: 94 | M3: 1 | N3: 1 | O3: 31 | P3: 2-5 | Q3: 3,5 | R3: =SUM(G3+K3+N3+Q3) -> 8.5
A4: 2 | B4: Романов Родион | C4: 2004 | D4: 89 | F4: 2 | G4: 2 | H4: 242 | I4: 2 | K4: 2 | L4: 83 | M4: 5 | N4: 5 | O4: 36 | P4: 1 | Q4: 1 | R4: =SUM(G4+K4+N4+Q4) -> 10
A5: 3 | B5: Шегуров Георгий | C5: 2004 | D5: 95 | F5: 1 | G5: 1 | H5: 213 | I5: 11 | K5: 11 | L5: 93 | M5: 2 | N5: 2 | O5: 31 | P5: 2-5 | Q5: 3,5 | R5: =SUM(G5+K5+N5+Q5) -> 17.5
A6: 4 | B6: Николаевский Кирилл | C6: 2004 | D6: 69 | F6: 4 | G6: 4 | H6: 236 | I6: 4 | K6: 4 | L6: 90 | M6: 3 | N6: 3 | O6: 29 | P6: 8-9 | Q6: 8,5 | R6: 19.5
A7: 5 | B7: Гаврилов Богдан | C7: 2004 | D7: 61 | F7: 7-8 | G7: 7,5 | H7: 224 | I7: 6 | K7: 6 | L7: 70 | M7: 9 | N7: 9 | O7: 31 | P7: 2-5 | Q7: 3,5 | R7: =SUM(G7+K7+N7+Q7) -> 26
A8: 6 | B8: Сафин Даниил | C8: 2004 | D8: 54 | F8: 10 | G8: 10 | H8: 237 | I8: 3 | K8: 3 | L8: 55 | M8: 14-15 | N8: 14.5 | O8: 28 | P8: 10-13 | Q8: 11,5 | R8: =SUM(G8+K8+N8+Q8) -> 39
A9: 7 | B9: Гибадуллин Карим | C9: 2004 | D9: 68 | F9: 5 | G9: 5 | H9: 183 | I9: 30 | K9: 30 | L9: 77 | M9: 6 | N9: 6 | O9: 30 | P9: 6 | Q9: 6 | R9: 47
A10: 8 | B10: Этричев Павел | C10: 2004 | D10: 39 | F10: 19 | G10: 19,5 | H10: 216 | I10: 9 | K10: 9 | L10: 75 | M10: 7 | N10: 7 | O10: 27 | P10: 14-17 | Q10: 15,5 | R10: =SUM(G10+K10+N10+Q10) -> 51
A11: 9 | B11: Данилов Степан | C11: 2005 | D11: 47 | F11: 12 | G11: 12 | H11: 210 | I11: 14-16 | K11: 15 | L11: 47 | M11: 22 | N11: 22 | O11: 31 | P11: 2-5 | Q11: 3,5 | R11: =SUM(G11+K11+N11+Q11) -> 52.5
A12: 10 | B12: Штеркель Артур | C12: 2004 | D12: 62 | F12: 6 | G12: 6 | H12: 212 | I12: 12 | K12: 12 | L12: 49 | M12: 19-20 | N12: 19.5 | O12: 27 | P12: 14-17 | Q12: 15,5 | R12: 53
A13: 11 | B13: Бектяшкин Константин | C13: 2004 | D13: 40 | F13: 17 | G13: 17,5 | H13: 210 | I13: 14-16 | K13: 15 | L13: 89 | M13: 4 | N13: 4 | O13: 26 | P13: 18-21 | Q13: 19,5 | R13: =SUM(G13+K13+N13+Q13) -> 56
A14: 12 | B14: Козлов Никита | C14: 2004 | D14: 57 | F14: 9 | G14: 9 | H14: 221 | I14: 8 | K14: 8 | L14: 42 | M14: 29-30 | N14: 29.5 | O14: 28 | P14: 10-13 | Q14: 11,5 | R14: =SUM(G14+K14+N14+Q14) -> 58
A15: 13 | B15: Кострыкин Владимир | C15: 2004 | D15: 51 | F15: 11 | G15: 11 | H15: 184 | I15: 29-30 | K15: 29.5 | L15: 71 | M15: 8 | N15: 8 | O15: 28 | P15: 10-13 | Q15: 11,5 | R15: 60
A16: 14 | B16: Артыков Рустем | C16: 2005 | D16: 45 | F16: 13 | G16: 13 | H16: 205 | I16: 18 | K16: 18 | L16: 48 | M16: 21 | N16: 21 | O16: 29 | P16: 8-9 | Q16: 8,5 | R16: 60.5
A17: 15 | B17: Алексеев Данил | C17: 2004 | D17: 43 | F17: 14 | G17: 14 | H17: 198 | I17: 21 | K17: 21 | L17: 55 | M17: 14-15 | N17: 14.5 | O17: 28 | P17: 10-13 | Q17: 11,5 | R17: 61
A18: 16 | B18: Барсуков Алексей | C18: 2004 | D18: 29 | F18: 29 | G18: 28 | H18: 225 | I18: 5 | K18: 5 | L18: 61 | M18: 11 | N18: 11 | O18: 25 | P18: 22-27 | Q18: 24,5 | R18: =SUM(G18+K18+N18+Q18) -> 68.5
A19: 17 | B19: Колочков Илья | C19: 2004 | D19: 61 | F19: 7-8 | G19: 7,5 | H19: 176 | I19: 36 | K19: 36 | L19: 65 | M19: 10 | N19: 10 | O19: 27 | P19: 14-17 | Q19: 15,5 | R19: 69
A20: 18 | B20: Нурисламов Ленар | C20: 2004 | D20: 29 | F20: 27 | G20: 28 | H20: 206 | I20: 17 | K20: 17 | L20: 57 | M20: 12 | N20: 12 | O20: 25 | P20: 22-27 | Q20: 24,5 | R20: 81.5
A21: 19 | B21: Поляков Егор | C21: 2004 | D21: 32 | F21: 25 | G21: 24,5 | H21: 197 | I21: 22 | K21: 22 | L21: 54 | M21: 16 | N21: 16 | O21: 26 | P21: 18-21 | Q21: 19,5 | R21: 82
A22: 20 | B22: Катков Эдвард | C22: 2004 | D22: 39 | F22: 20 | G22: 19,5 | H22: 222 | I22: 7 | K22: 7 | L22: 40 | M22: 31-32 | N22: 31.5 | O22: 25 | P22: 22-27 | Q22: 24,5 | R22: 82.5
A23: 21 | B23: Полинчук Елисей | C23: 2004 | D23: 40 | F23: 18 | G23: 17,5 | H23: 193 | I23: 24-25 | K23: 24.5 | L23: 46 | M23: 23 | N23: 23 | O23: 26 | P23: 18-21 | Q23: 19,5 | R23: 84.5
A24: 22 | B24: Агафонов Данил | C24: 2004 | D24: 27 | F24: 30 | G24: 30 | H24: 214 | I24: 10 | K24: 10 | L24: 53 | M24: 17 | N24: 17 | O24: 24 | P24: 28-33 | Q24: 30,5 | R24: 87.5
A25: 23 | B25: Буденин Тимофей | C25: 2005 | D25: 33 | F25: 23 | G25: 23 | H25: 210 | I25: 14-16 | K25: 15 | L25: 42 | M25: 28-30 | N25: 29 | O25: 25 | P25: 22-27 | Q25: 24,5 | R25: 91.5
A26: 24 | B26: Шаботич Алан | C26: 2004 | D26: 36 | F26: 22 | G26: 21,5 | H26: 200 | I26: 20 | K26: 20 | L26: 56 | M26: 13 | N26: 13 | O26: 22 | P26: 37-38 | Q26: 37,5 | R26: 92
A27: 25 | B27: Филипов Альберт | C27: 2005 | D27: 29 | F27: 28 | G27: 28 | H27: 191 | I27: 25 | K27: 25 | L27: 51 | M27: 18 | N27: 18 | O27: 24 | P27: 28-33 | Q27: 30,5 | R27: 101.5
A28: 26 | B28: Лузин Никита | C28: 2004 | D28: 25 | F28: 32 | G28: 32,5 | H28: 193 | I28: 24-25 | K28: 24.5 | L28: 44 | M28: 24-25 | N28: 24.5 | O28: 25 | P28: 22-27 | Q28: 24,5 | R28: 106
A29: 27 | B29: Яруллин Ранель | C29: 2004 | D29: 24 | F29: 34 | G29: 34 | H29: 170 | I29: 41 | K29: 41 | L29: 49 | M29: 19-20 | N29: 19.5 | O29: 27 | P29: 14-17 | Q29: 15,5 | R29: 110
A30: 28 | B30: Якупов Айрат | C30: 2004 | D30: 41 | F30: 15-16 | G30: 15,5 | H30: 160 | I30: 44 | K30: 44 | L30: 40 | M30: 31-32 | N30: 31.5 | O30: 26 | P30: 18-21 | Q30: 19,5 | R30: 110.5
A31: 29 | B31: Хуснутдинов Тимур | C31: 2004 | D31: 23 | F31: 36 | G31: 35,5 | H31: 209 | I31: 16 | K31: 16 | L31: 43 | M31: 26-27 | N31: 26.5 | O31: 23 | P31: 34-36 | Q31: 35 | R31: 113
A32: 30-31 | B32: Гордеев Богдан | C32: 2005 | D32: 32 | F32: 24 | G32: 24,5 | H32: 175 | I32: 38 | K32: 38 | L32: 44 | M32: 24-25 | N32: 24.5 | O32: 20 | P32: 40-43 | Q32: 41,5 | R32: 128.5
A33: 30-31 | B33: Матвеев Иван | C33: 2005 | D33: 31 | F33: 26 | G33: 26 | H33: 176 | I33: 36 | K33: 36 | L33: 42 | M33: 28-30 | N33: 29 | O33: 22 | P33: 37-38 | Q33: 37,5 | R33: 128.5
A34: 32 | B34: Замалеев Арслан | C34: 2004 | D34: 20 | F34: 41 | G34: 40 | H34: 201 | I34: 19 | K34: 19 | L34: 33 | M34: 37-38 | N34: 37.5 | O34: 23 | P34: 34-36 | Q34: 35 | R34: 131.5
A35: 33 | B35: Ахмадиев Эмиль | C35: 2004 | D35: 41 | F35: 15-16 | G35: 15,5 | H35: 167 | I35: 42-43 | K35: 42.5 | L35: 43 | M35: 26-27 | N35: 26.5 | O35: 14 | P35: 49-50 | Q35: 49,5 | R35: 134
A36: 34 | B36: Куляпин Владимир | C36: 2004 | D36: 25 | F36: 33 | G36: 32,5 | H36: 176 | I36: 36 | K36: 36 | L36: 33 | M36: 37-38 | N36: 37.5 | O36: 24 | P36: 28-33 | Q36: 30,5 | R36: =SUM(G36+K36+N36+Q36) -> 136.5
A37: 35 | B37: Романов Илья | C37: 2004 | D37: 23 | F37: 35 | G37: 35,5 | H37: 180 | I37: 33 | K37: 33 | L37: 34 | M37: 35-36 | N37: 35.5 | O37: 20 | P37: 40-43 | Q37: 41,5 | R37: =SUM(G37+K37+N37+Q37) -> 145.5
A38: 36 | B38: Карымов Даниил | C38: 2005 | D38: 15 | F38: 42 | G38: 42 | H38: 184 | I38: 29-30 | K38: 29.5 | L38: 39 | M38: 33 | N38: 33 | O38: 20 | P38: 40-43 | Q38: 41,5 | R38: =SUM(G38+K38+N38+Q38) -> 146
A39: 37 | B39: Фатхуллин Булат | C39: 2005 | D39: 7 | F39: 47 | G39: 47 | H39: 188 | I39: 26 | K39: 26 | L39: 14 | M39: 45 | N39: 45 | O39: 24 | P39: 28-33 | Q39: 30,5 | R39: =SUM(G39+K39+N39+Q39) -> 148.5
A40: 38 | B40: Семенов Михаил | C40: 2005 | D40: 22 | F40: 37 | G40: 37 | H40: 156 | I40: 46-47 | K40: 46.5 | L40: 25 | M40: 43 | N40: 43 | O40: 25 | P40: 22-27 | Q40: 24,5 | R40: =SUM(G40+K40+N40+Q40) -> 151
A41: 39 | B41: Валиуллин Арслан | C41: 2005 | D41: 36 | F41: 21 | G41: 21,5 | H41: 159 | I41: 45 | K41: 45 | L41: 24 | M41: 44 | N41: 44 | O41: 19 | P41: 44-47 | Q41: 45,5 | R41: 156
A42: 40 | B42: Смирнов Григорий | C42: 2005 | D42: 9 | F42: 44 | G42: 44,5 | H42: 167 | I42: 42-43 | K42: 42.5 | L42: 27 | M42: 40-42 | N42: 41 | O42: 21 | P42: 32 | Q42: 32 | R42: =SUM(G42+K42+N42+Q42) -> 160
A43: 41 | B43: Сардаев Илья | C43: 2005 | D43: 26 | F43: 31 | G43: 31 | H43: 127 | I43: 51 | K43: 51 | L43: 38 | M43: 34 | N43: 34 | O43: 18 | P43: 43-47 | Q43: 45 | R43: 161
A44: 42 | B44: Шарафутдинов Марсель | C44: 2005 | D44: 21 | F44: 38 | G44: 38 | H44: 156 | I44: 46-47 | K44: 46.5 | L44: 28 | M44: 39 | N44: 39 | O44: 20 | P44: 40-43 | Q44: 41,5 | R44: 165
A45: 43 | B45: Волконский Всеволод | C45: 2005 | D45: 20 | F45: 39 | G45: 40 | H45: 172 | I45: 39 | K45: 39 | L45: 34 | M45: 35-36 | N45: 35.5 | O45: 16 | P45: 48 | Q45: 48 | R45: 162.5
A46: 44 | B46: Моисеев Данил | C46: 2005 | D46: 8 | F46: 46 | G46: 46 | H46: 170 | I46: 41-42 | K46: 41.5 | L46: 8 | M46: 48-49 | N46: 48.5 | O46: 24 | P46: 28-33 | Q46: 30,5 | R46: =SUM(G46+K46+N46+Q46) -> 166.5
A47: 45 | B47: Мухаметзагиров Раиль | C47: 2005 | D47: 6 | F47: 48 | G47: 48 | H47: 170 | I47: 41-42 | K47: 41.5 | L47: 11 | M47: 47 | N47: 47 | O47: 24 | P47: 28-33 | Q47: 30,5 | R47: =SUM(G47+K47+N47+Q47) -> 167
A48: 46 | B48: Сабирзянов Азат | C48: 2005 | D48: 9 | F48: 45 | G48: 44,5 | H48: 178 | I48: 34 | K48: 34 | L48: 27 | M48: 39-41 | N48: 40 | O48: 14 | P48: 49-50 | Q48: 49,5 | R48: =SUM(G48+K48+N48+Q48) -> 168
A49: 47 | B49: Халиков Карим | C49: 2004 | D49: 4 | F49: 49 | G49: 49 | H49: 149 | I49: 49 | K49: 49 | L49: 27 | M49: 40-42 | N49: 41 | O49: 18 | P49: 45 | Q49: 45 | R49: =SUM(G49+K49+N49+Q49) -> 184
A50: 48 | B50: Мухаметшин Рузель | C50: 2005 | D50: 12 | F50: 43 | G50: 43 | H50: 148 | I50: 50 | K50: 50 | L50: 12 | M50: 46 | N50: 46 | O50: 11 | P50: 51 | Q50: 51 | R50: 190
A51: 49 | B51: Валиев Булат | C51: 2004 | D51: 20 | F51: 40 | G51: 40 | H51: 194 | I51: 23 | K51: 23 | L51: 0 | M51: 0 | N51: 100 | O51: 23 | P51: 34-36 | Q51: 35 | R51: =SUM(G51+K51+N51+Q51) -> 198
A52: 50 | B52: Мурзин Илья | C52: 2004 | D52: 0 | F52: 0 | G52: 100 | H52: 186 | I52: 28 | K52: 28 | L52: 8 | M52: 48-49 | N52: 48.5 | O52: 18 | P52: 45-47 | Q52: 46 | R52: =SUM(G52+K52+N52+Q52) -> 222.5
A53: 51 | B53: Пузанов Федор | C53: 2005 | D53: 0 | F53: 0 | G53: 100 | H53: 187 | I53: 27 | K53: 27 | L53: 7 | M53: 50 | N53: 50 | O53: 5 | P53: 52 | Q53: 52 | R53: 229
B54: Главный судья соревнований | K54: Беляков В.А.
B56: Главный секретарь соревнований | K56: Камалетдинов Т.О.

Sheet ДЕВУШКИ 2004-05 г.
A1: ПЕРВЕНСТВО ДЮСШ "ПРИЗ ДЕДА МОРОЗА" ТЕХНИЧЕСКИЕ РЕЗУЛЬТАТЫ ДЕВУШКИ 2004-2005 г.р. 05/01/2018
A2: место | B2: Фамилия Имя | C2: год рожд. | D2: Жим лёжа (1'x20кг кол-во) | E2: место | F2: м | G2: очки | H2: Прыжок с места (3раза см) | I2: м | J2: очки | K2: очки | L2: Тяга лёжа (1'x20кг кол-во) | M2: м | N2: очки | O2: Подъём ног (30"кол-во) | P2: м | Q2: очки | R2: сумма очков
A3: 1 | B3: Урлукова Эльмира | C3: 2004 | D3: 63 | F3: 1 | G3: 1 | H3: 184 | I3: 2 | K3: 2 | L3: 60 | M3: 1 | N3: 1 | O3: 30 | P3: 1 | Q3: 1 | R3: =SUM(G3+K3+N3+Q3) -> 5
A4: 2 | B4: Горинова Алина | C4: 2004 | D4: 37 | F4: 2 | G4: 2 | H4: 178 | I4: 5 | K4: 5 | L4: 52 | M4: 3 | N4: 3 | O4: 28 | P4: 2 | Q4: 2 | R4: 12
A5: 3 | B5: Мухаметзянова Азалия | C5: 2004 | D5: 33 | F5: 3 | G5: 3 | H5: 150 | I5: 7 | K5: 7 | L5: 54 | M5: 2 | N5: 2 | O5: 25 | P5: 3 | Q5: 3 | R5: 15
A6: 4 | B6: Елькина Анастасия | C6: 2004 | D6: 28 | F6: 5 | G6: 5 | H6: 183 | I6: 3 | K6: 3 | L6: 48 | M6: 5 | N6: 5 | O6: 20 | P6: 6 | Q6: 6 | R6: 19
A7: 4 | B7: Файзульхакова Ксения | C7: 2004 | D7: 24 | F7: 7 | G7: 7 | H7: 182 | I7: 4 | K7: 4 | L7: 51 | M7: 4 | N7: 4 | O7: 24 | P7: 4 | Q7: 4 | R7: 19
A8: 5 | B8: Амосова Владислава | C8: 2004 | D8: 25 | F8: 6 | G8: 6 | H8: 190 | I8: 1 | K8: 1 | L8: 44 | M8: 6 | N8: 6 | O8: 18 | P8: 7 | Q8: 7 | R8: 20
A9: 6 | B9: Антонова Валерия | C9: 2005 | D9: 31 | F9: 4 | G9: 4 | H9: 160 | I9: 6 | K9: 6 | L9: 33 | M9: 7 | N9: 7 | O9: 22 | P9: 5 | Q9: 5 | R9: 22
A10: 7 | B10: Гарафутдинова Даниэла | C10: 2005 | D10: 12 | F10: 8 | G10: 8 | H10: 132 | I10: 8 | K10: 8 | L10: 27 | M10: 8 | N10: 8 | O10: 17 | P10: 8 | Q10: 8 | R10: 32
B39: Главный судья соревнований | K39: Беляков В.А.
B40: Главный секретарь соревнований | K40: Камалетдинов Т.О.

Sheet ЮНОШИ 2002-03 г.
A1: ПЕРВЕНСТВО ДЮСШ "ПРИЗ ДЕДА МОРОЗА" ТЕХНИЧЕСКИЕ РЕЗУЛЬТАТЫ ЮНОШИ 2002-2003 г.р. 04/01/2018
A2: место | B2: Фамилия Имя | C2: год рожд. | D2: Жим лёжа (1'x35кг кол-во) | E2: место | F2: м | G2: очки | H2: Прыжок с места (3раза см) | I2: м | J2: очки | K2: очки | L2: Тяга лёжа (1'x40кг кол-во) | M2: м | N2: очки | O2: Подъём ног (1'кол-во) | P2: м | Q2: очки | R2: сумма очков
A3: 1 | B3: Мухаметзянов И | C3: 2003 | D3: 60 | F3: 4-6 | G3: 5 | H3: 250 | I3: 1-2 | K3: 1.5 | L3: 42 | M3: 7 | N3: 7 | O3: 62 | P3: 1 | Q3: 1 | R3: =SUM(G3+K3+N3+Q3) -> 14.5
A4: 2 | B4: Галиуллов Б | C4: 2002 | D4: 72 | F4: 1 | G4: 1 | H4: 248 | I4: 3 | K4: 3 | L4: 47 | M4: 6 | N4: 6 | O4: 52 | P4: 7-8 | Q4: 7.5 | R4: 17.5
A5: 3 | B5: Пучков С | C5: 2002 | D5: 61 | F5: 3 | G5: 3 | H5: 214 | I5: 16 | K5: 16 | L5: 55 | M5: 1 | N5: 1 | O5: 59 | P5: 3 | Q5: 3 | R5: 23
A6: 4 | B6: Байрамгалеев Д | C6: 2002 | D6: 65 | F6: 2 | G6: 2 | H6: 217 | I6: 13 | K6: 13 | L6: 50 | M6: 4-6 | N6: 4 | O6: 57 | P6: 4 | Q6: 4 | R6: 23
A7: 5 | B7: Бикмуллин Д | C7: 2002 | D7: 41 | F7: 7 | G7: 7 | H7: 243 | I7: 5 | K7: 5 | L7: 50 | M7: 4-6 | N7: 4 | O7: 50 | P7: 11 | Q7: 11 | R7: 27
A8: 6 | B8: Желалетдинов О | C8: 2002 | D8: 29 | F8: 10 | G8: 10 | H8: 244 | I8: 4 | K8: 4 | L8: 41 | M8: 8 | N8: 8 | O8: 53 | P8: 6 | Q8: 6 | R8: 28
A9: 7 | B9: Романов Д | C9: 2002 | D9: 60 | F9: 4-6 | G9: 5 | H9: 214 | I9: 16 | K9: 16 | L9: 50 | M9: 4 | N9: 4 | O9: 52 | P9: 7-8 | Q9: 7.5 | R9: 32.5
A10: 8 | B10: Тимергалеев В | C10: 2003 | D10: 60 | F10: 4-6 | G10: 5 | H10: 207 | I10: 20-21 | K10: 20.5 | L10: 52 | M10: 2 | N10: 2 | O10: 50 | P10: 11 | Q10: 11 | R10: 38.5
A11: 9 | B11: Ямалиев С | C11: 2002 | D11: 22 | F11: 17 | G11: 17 | H11: 234 | I11: 7 | K11: 7 | L11: 37 | M11: 10-11 | N11: 10.5 | O11: 48 | P11: 14 | Q11: 14 | R11: 48.5
A12: 10 | B12: Герасимов И | C12: 2003 | D12: 24 | F12: 14 | G12: 14 | H12: 230 | I12: 9 | K12: 9 | L12: 30 | M12: 21-22 | N12: 21.5 | O12: 55 | P12: 5 | Q12: 5 | R12: 49.5
A13: 11 | B13: Платонов А | C13: 2002 | D13: 19 | F13: 21-22 | G13: 21.5 | H13: 224 | I13: 10 | K13: 10 | L13: 35 | M13: 12-13 | N13: 12.5 | O13: 49 | P13: 13 | Q13: 13 | R13: =SUM(G13+K13+N13+Q13) -> 57
A14: 12 | B14: Халиуллин А | C14: 2003 | D14: 25 | F14: 13 | G14: 13 | H14: 250 | I14: 1-2 | K14: 1.5 | L14: 24 | M14: 27 | N14: 27 | O14: 47 | P14: 16 | Q14: 16 | R14: =SUM(G14+K14+N14+Q14) -> 57.5
A15: 13-14 | B15: Развалов Афан | C15: 2003 | D15: 20 | E15: 19-21 | F15: 19-22 | G15: 19,5 | H15: 223 | I15: 11 | K15: 11 | L15: 40 | M15: 9 | N15: 9 | O15: 42 | P15: 22-23 | Q15: 22,5 | R15: 62
A16: 13-14 | B16: Хадиев Р | C16: 2002 | D16: 28 | F16: 11 | G16: 11 | H16: 219 | I16: 12 | K16: 12 | L16: 32 | M16: 19-20 | N16: 19.5 | O16: 44 | P16: 19-20 | Q16: 19,5 | R16: 62
A17: 15 | B17: Загидуллин А | C17: 2002 | D17: 26 | F17: 12 | G17: 12 | H17: 213 | I17: 18 | K17: 18 | L17: 34 | M17: 14-15 | N17: 14.5 | O17: 4 | P17: 25-26 | Q17: 25,5 | R17: 70
A18: 16 | B18: Тарелкин М | C18: 2003 | D18: 36 | F18: 9 | G18: 9 | H18: 186 | I18: 30 | K18: 30 | L18: 27 | M18: 24 | N18: 24 | O18: 51 | P18: 9 | Q18: 9 | R18: 72
A19: 17-18 | B19: Глушков В | C19: 2002 | D19: 13 | F19: 28 | G19: 28 | H19: 208 | I19: 19 | K19: 19 | L19: 35 | M19: 12-13 | N19: 12.5 | O19: 44 | P19: 19-20 | Q19: 19,5 | R19: 79
A20: 17-18 | B20: Шафигуллин Г | C20: 2003 | D20: 23 | F20: 15-16 | G20: 15,5 | H20: 214 | I20: 16 | K20: 16 | L20: 20 | M20: 31-32 | N20: 31.5 | O20: 47 | P20: 16 | Q20: 16 | R20: 79
A21: 19 | B21: Зайнуллин Т | C21: 2003 | D21: 18 | F21: 24 | G21: 24 | H21: 238 | I21: 6 | K21: 6 | L21: 23 | M21: 29 | N21: 29 | O21: 42 | P21: 22-23 | Q21: 22,5 | R21: 81.5
A22: 20 | B22: Лексин И | C22: 2002 | D22: 12 | F22: 28-29 | G22: 28,5 | H22: 216 | I22: 14 | K22: 14 | L22: 37 | M22: 10-11 | N22: 10.5 | O22: 36 | P22: 30 | Q22: 30 | R22: 83
A23: 21 | B23: Никифоров В | C23: 2003 | D23: 37 | F23: 8 | G23: 8 | H23: 176 | I23: 33-34 | K23: 33.5 | L23: 34 | M23: 14-15 | N23: 14.5 | O23: 37 | P23: 29 | Q23: 29 | R23: =SUM(G23+K23+N23+Q23) -> 85
A24: 22 | B24: Бикчентаев И | C24: 2002 | D24: 14 | F24: 27 | G24: 27 | H24: 232 | I24: 8 | K24: 8 | L24: 20 | M24: 31-32 | N24: 31.5 | O24: 38 | P24: 27-28 | Q24: 27,5 | R24: 94
A25: 23 | B25: Галиев А | C25: 2003 | D25: 18 | F25: 24 | G25: 24 | H25: 199 | I25: 25 | K25: 25 | L25: 17 | M25: 35 | N25: 35 | O25: 50 | P25: 11 | Q25: 11 | R25: 95
A26: 24-25 | B26: Рыбочкин А | C26: 2003 | D26: 22 | F26: 17 | G26: 17 | H26: 188 | I26: 29 | K26: 29 | L26: 33 | M26: 17 | N26: 17 | O26: 33 | P26: 33-34 | Q26: 33,5 | R26: 96.5
A27: 24-25 | B27: Лутфуллин А | C27: 2002 | D27: 23 | F27: 15-16 | G27: 15,5 | H27: 196 | I27: 27 | K27: 27 | L27: 33 | M27: 17 | N27: 17 | O27: 27 | P27: 37 | Q27: 37 | R27: 96.5
A28: 26 | B28: Кузнецов Н | C28: 2003 | D28: 17 | F28: 25-26 | G28: 25,5 | H28: 177 | I28: 31 | K28: 31 | L28: 3 | M28: 41 | N28: 41 | O28: 60 | P28: 2 | Q28: 2 | R28: 99.5
A29: 27 | B29: Габетдинов И | C29: 2003 | D29: 19 | F29: 21-22 | G29: 21,5 | H29: 176 | I29: 33-34 | K29: 33.5 | L29: 24 | M29: 27 | N29: 27 | O29: 46 | P29: 18 | Q29: 18 | R29: 100
A30: 28 | B30: Амельченко Д | C30: 2003 | D30: 22 | F30: 17 | G30: 17 | H30: 176 | I30: 33-34 | K30: 33.5 | L30: 33 | M30: 17 | N30: 17 | O30: 32 | P30: 35 | Q30: 35 | R30: 102.5
A31: 29 | B31: Развалов Арс | C31: 2003 | D31: 11 | F31: 30 | G31: 30 | H31: 205 | I31: 22-23 | K31: 22.5 | L31: 32 | M31: 19-20 | N31: 19.5 | O31: 33 | P31: 33-34 | Q31: 33,5 | R31: 105.5
A32: 30 | B32: Лукоянов Д | C32: 2003 | D32: 20 | F32: 19-20 | G32: 19,5 | H32: 198 | I32: 26 | K32: 26 | L32: 21 | M32: 30 | N32: 30 | O32: 34 | P32: 32 | Q32: 32 | R32: 107.5
A33: 31 | B33: Шамсутдинов И | C33: 2003 | D33: 12 | F33: 28-29 | G33: 28,5 | H33: 167 | I33: 37 | K33: 37 | L33: 30 | M33: 21-22 | N33: 21.5 | O33: 41 | P33: 25-26 | Q33: 25,5 | R33: 112.5
A34: 32 | B34: Морозов И | C34: 2003 | D34: 7 | F34: 33-34 | G34: 33,5 | H34: 200 | I34: 24 | K34: 24 | L34: 4 | M34: 40 | N34: 40 | O34: 47 | P34: 16 | Q34: 16 | R34: 113.5
A35: 33 | B35: Берёзкин А | C35: 2003 | D35: 7 | F35: 33-34 | G35: 33,5 | H35: 207 | I35: 20-21 | K35: 20.5 | L35: 10 | M35: 39 | N35: 39 | O35: 42 | P35: 22-23 | Q35: 22,5 | R35: 115.5
A36: 34 | B36: Бочкарёв П | C36: 2003 | D36: 18 | F36: 24 | G36: 24 | H36: 176 | I36: 33-34 | K36: 33.5 | L36: 15 | M36: 37 | N36: 37 | O36: 42 | P36: 22-23 | Q36: 22,5 | R36: 117
A37: 35 | B37: Кляцкий Е | C37: 2003 | D37: 1 | F37: 38 | G37: 38 | H37: 205 | I37: 22-23 | K37: 22.5 | L37: 19 | M37: 33-34 | N37: 33.5 | O37: 38 | P37: 27-28 | Q37: 27,5 | R37: =SUM(G37+K37+N37+Q37) -> 121.5
A38: 36 | B38: Фахрутдинов А | C38: 2003 | D38: 9 | F38: 32 | G38: 32 | H38: 170 | I38: 36 | K38: 36 | L38: 25 | M38: 25 | N38: 25 | O38: 35 | P38: 31 | Q38: 31 | R38: 124
A39: 37 | B39: Кирниченков И | C39: 2003 | D39: 2 | F39: 36-37 | G39: 36,5 | H39: 195 | I39: 28 | K39: 28 | L39: 16 | M39: 36 | N39: 36 | O39: 28 | P39: 36 | Q39: 36 | R39: 136.5
A40: 38 | B40: Маслов М | C40: 2003 | D40: 2 | F40: 36-37 | G40: 36,5 | H40: 151 | I40: 39 | K40: 39 | L40: 19 | M40: 33-34 | N40: 33.5 | O40: 7 | P40: 41 | Q40: 41 | R40: 150
A41: 39 | B41: Бахтиев Т | C41: 2003 | D41: 4 | F41: 35 | G41: 35 | H41: 160 | I41: 38 | K41: 38 | L41: 14 | M41: 38 | N41: 38 | O41: 17 | P41: 40 | Q41: 40 | R41: 151
A42: 40 | B42: Сметанин С | C42: 2002 | D42: 15 | F42: 26 | G42: 26 | H42: 0 | I42: 0 | K42: 100 | L42: 28 | M42: 23 | N42: 23 | O42: 21 | P42: 39 | Q42: 39 | R42: =SUM(G42+K42+N42+Q42) -> 188
A43: 41 | B43: Яшин А | C43: 2002 | D43: 10 | F43: 31 | G43: 31 | H43: 0 | I43: 0 | K43: 100 | L43: 24 | M43: 27 | N43: 27 | O43: 25 | P43: 38 | Q43: 38 | R43: =SUM(G43+K43+N43+Q43) -> 196
A44: в/к | B44: Минхаеров Булат | C44: 2003 | D44: 0 | F44: 0 | G44: 100 | H44: 183 | I44: 0 | K44: 100 | L44: 19 | M44: 0 | N44: 100 | O44: 22 | P44: 0 | Q44: 100 | R44: =SUM(G44+K44+N44+Q44) -> 400
B45: Главный судья соревнований | K45: Беляков В.А.
B46: Главный секретарь соревнований | K46: Камалетдинов Т.О.

Sheet ДЕВУШКИ 2002-03 г.
A1: ПЕРВЕНСТВО ДЮСШ "ПРИЗ ДЕДА МОРОЗА" ТЕХНИЧЕСКИЕ РЕЗУЛЬТАТЫ ДЕВУШКИ 2002-2003 г.р. 04/01/2018
A2: место | B2: Фамилия Имя | C2: год рожд. | D2: Жим лёжа (1'x20кг кол-во) | E2: место | F2: м | G2: очки | H2: Прыжок с места (3раза см) | I2: м | J2: очки | K2: очки | L2: Тяга лёжа (1'x25кг кол-во) | M2: м | N2: очки | O2: Подъём ног (1'кол-во) | P2: м | Q2: очки | R2: сумма очков
A3: 1 | B3: Касьяненко Ангелина | C3: 2002 | D3: 87 | F3: 1 | G3: 1 | H3: 186 | I3: 3 | K3: 3 | L3: 55 | M3: 2 | N3: 2 | O3: 51 | P3: 1 | Q3: 1 | R3: =SUM(G3+K3+N3+Q3) -> 7
A4: 2 | B4: Бадрутдинова Малика | C4: 2002 | D4: 35 | F4: 6 | G4: 6 | H4: 204 | I4: 2 | K4: 2 | L4: 45 | M4: 4 | N4: 4 | O4: 50 | P4: 2 | Q4: 2 | R4: 14
A5: 3 | B5: Крупина Инна | C5: 2002 | D5: 48 | F5: 4 | G5: 4 | H5: 181 | I5: 5 | K5: 5 | L5: 47 | M5: 3 | N5: 3 | O5: 46 | P5: 3-4 | Q5: 3.5 | R5: 15.5
A6: 4 | B6: Сулейманова Камилла | C6: 2003 | D6: 68 | F6: 2 | G6: 2 | H6: 168 | I6: 9 | K6: 9 | L6: 58 | M6: 1 | N6: 1 | O6: 43 | P6: 7 | Q6: 7 | R6: 19
A7: 5 | B7: Комогорцева Камила | C7: 2003 | D7: 55 | F7: 3 | G7: 3 | H7: 180 | I7: 6 | K7: 6 | L7: 40 | M7: 7 | N7: 7 | O7: 46 | P7: 3-4 | Q7: 3.5 | R7: 19.5
A8: 6 | B8: Гайнуллина Камила | C8: 2003 | D8: 35 | F8: 8 | G8: 8 | H8: 206 | I8: 1 | K8: 1 | L8: 36 | M8: 8 | N8: 8 | O8: 45 | P8: 5-6 | Q8: 5.5 | R8: 22.5
A9: 7 | B9: Нафиева Азиза | C9: 2002 | D9: 40 | F9: 5 | G9: 5 | H9: 179 | I9: 7 | K9: 7 | L9: 43 | M9: 5-6 | N9: 5.5 | O9: 45 | P9: 5-6 | Q9: 5.5 | R9: 23
A10: 8 | B10: Давлетшина Тансылу | C10: 2003 | D10: 37 | F10: 7 | G10: 7 | H10: 182 | I10: 4 | K10: 4 | L10: 43 | M10: 5-6 | N10: 5.5 | O10: 23 | P10: 8 | Q10: 8 | R10: 24.5
A11: 9 | B11: Исаева Луиза | C11: 2003 | D11: 22 | F11: 9 | G11: 9 | H11: 170 | I11: 8 | K11: 8 | L11: 26 | M11: 9 | N11: 9 | O11: 11 | P11: 9 | Q11: 9 | R11: 35
B39: Главный судья соревнований | K39: Беляков В.А.
B41: Главный секретарь соревнований | K41: Камалетдинов Т.О.

Sheet ЮНОШИ 1999-2001
A1: ПЕРВЕНСТВО ДЮСШ "ПРИЗ ДЕДА МОРОЗА" ТЕХНИЧЕСКИЕ РЕЗУЛЬТАТЫ ЮНОШИ 1999-2001 г.р. 04/01/2018
A2: место | B2: Фамилия Имя | C2: год рожд. | D2: Жим лёжа (1'x35кг кол-во) | E2: место | F2: м | G2: очки | H2: Прыжок с места (3раза см) | I2: м | J2: очки | K2: очки | L2: Тяга лёжа (1'x40кг кол-во) | M2: м | N2: очки | O2: Подъём ног (1'кол-во) | P2: м | Q2: очки | R2: сумма очков
A3: 1 | B3: Енгулатов Тимур | C3: 1999 | D3: 53 | F3: 8 | G3: 8 | H3: 266 | I3: 2 | K3: 2 | L3: 65 | M3: 4 | N3: 4 | O3: 56 | P3: 2-5 | Q3: 3.5 | R3: =SUM(G3+K3+N3+Q3) -> 17.5
A4: 2 | B4: Шигапов Амир | C4: 2000 | D4: 72 | F4: 4 | G4: 4 | H4: 252 | I4: 7-9 | K4: 8 | L4: 60 | M4: 6 | N4: 6 | O4: 54 | P4: 7-8 | Q4: 7.5 | R4: =SUM(G4+K4+N4+Q4) -> 25.5
A5: 3 | B5: Монахов Илья | C5: 2000 | D5: 73 | F5: 3 | G5: 3 | H5: 252 | I5: 7-9 | K5: 8 | L5: 72 | M5: 1 | N5: 1 | O5: 50 | P5: 15-16 | Q5: 15.5 | R5: 27.5
A6: 4 | B6: Мельников Андрей | C6: 1999 | D6: 46 | F6: 10 | G6: 10 | H6: 258 | I6: 3 | K6: 3 | L6: 63 | M6: 5 | N6: 5 | O6: 52 | P6: 9-12 | Q6: 10.5 | R6: 28.5
A7: 5 | B7: Фазылов Ильяс | C7: 2000 | D7: 68 | F7: 6 | G7: 6 | H7: 240 | I7: 16-17 | K7: 16.5 | L7: 66 | M7: 3 | N7: 3 | O7: 56 | P7: 2-5 | Q7: 3.5 | R7: 29
A8: 6 | B8: Троицкий Георгий | C8: 2000 | D8: 57 | F8: 7 | G8: 7 | H8: 252 | I8: 7-9 | K8: 8 | L8: 53 | M8: 9 | N8: 9 | O8: 54 | P8: 7-8 | Q8: 7.5 | R8: 31.5
A9: 7 | B9: Менгазов Данис | C9: 2000 | D9: 34 | F9: 16-18 | G9: 17 | H9: 290 | I9: 1 | K9: 1 | L9: 44 | M9: 14 | N9: 14 | O9: 56 | P9: 2-5 | Q9: 3.5 | R9: 35.5
A10: 8 | B10: Хамидуллин Булат | C10: 2001 | D10: 70 | F10: 5 | G10: 5 | H10: 224 | I10: 21 | K10: 21 | L10: 58 | M10: 7-8 | N10: 7.5 | O10: 56 | P10: 2-5 | Q10: 3.5 | R10: 37
A11: 9 | B11: Матвеев Егор | C11: 2001 | D11: 75 | F11: 2 | G11: 2 | H11: 246 | I11: 13 | K11: 13 | L11: 49 | M11: 10 | N11: 10 | O11: 51 | P11: 13-14 | Q11: 13.5 | R11: 38.5
A12: 10 | B12: Серазетдинов Ильяс | C12: 2000 | D12: 34 | F12: 16-18 | G12: 17 | H12: 251 | I12: 10 | K12: 10 | L12: 68 | M12: 2 | N12: 2 | O12: 52 | P12: 9-12 | Q12: 10.5 | R12: 39.5
A13: 11 | B13: Кузьмин Игорь | C13: 2001 | D13: 80 | F13: 1 | G13: 1 | H13: 238 | I13: 18 | K13: 18 | L13: 36 | M13: 18-20 | N13: 19 | O13: 55 | P13: 6 | Q13: 6 | R13: 44
A14: 12 | B14: Паркачев Илья | C14: 2001 | D14: 50 | F14: 9 | G14: 9 | H14: 237 | I14: 19 | K14: 19 | L14: 37 | M14: 17 | N14: 17 | O14: 58 | P14: 1 | Q14: 1 | R14: 46
A15: 13 | B15: Мельников Александр | C15: 1999 | D15: 39 | F15: 13 | G15: 13 | H15: 240 | I15: 16-17 | K15: 16.5 | L15: 58 | M15: 7-8 | N15: 7.5 | O15: 52 | P15: 9-12 | Q15: 10.5 | R15: 47.5
A16: 14 | B16: Константинов Сергей | C16: 2001 | D16: 41 | F16: 11 | G16: 11 | H16: 242 | I16: 14 | K16: 14 | L16: 45 | M16: 13 | N16: 13 | O16: 51 | P16: 13-14 | Q16: 13.5 | R16: 51.5
A17: 15 | B17: Устинов Роман | C17: 2001 | D17: 23 | F17: 19-20 | G17: 19.5 | H17: 256 | I17: 4-5 | K17: 4.5 | L17: 47 | M17: 12 | N17: 12 | O17: 48 | P17: 17 | Q17: 17 | R17: 53
A18: 16-17 | B18: Сойгин Эмиль | C18: 2001 | D18: 34 | F18: 16-18 | G18: 17 | H18: 256 | I18: 4-5 | K18: 4.5 | L18: 34 | M18: 21-22 | N18: 21.5 | O18: 44 | P18: 18-19 | Q18: 18.5 | R18: 61.5
A19: 16-17 | B19: Коновалов Егор | C19: 1999 | D19: 35 | F19: 15 | G19: 15 | H19: 241 | I19: 15 | K19: 15 | L19: 38 | M19: 16 | N19: 16 | O19: 50 | P19: 15-16 | Q19: 15.5 | R19: 61.5
A20: 18 | B20: Ахметшин Шам | C20: 2001 | D20: 21 | F20: 22 | G20: 22 | H20: 249 | I20: 11-12 | K20: 11.5 | L20: 36 | M20: 19 | N20: 19 | O20: 52 | P20: 9-12 | Q20: 10.5 | R20: 63
A21: 19-20 | B21: Вендт Дмитрий | C21: 2001 | D21: 23 | F21: 19-20 | G21: 19.5 | H21: 255 | I21: 6 | K21: 6 | L21: 36 | M21: 18-20 | N21: 19 | O21: 29 | P21: 21 | Q21: 21 | R21: 65.5
A22: 19-20 | B22: Емелин Егор | C22: 2000 | D22: 40 | F22: 12 | G22: 12 | H22: 234 | I22: 20 | K22: 20 | L22: 40 | M22: 15 | N22: 15 | O22: 44 | P22: 18-19 | Q22: 18.5 | R22: 65.5
A23: 21 | B23: Миннуллин Камиль | C23: 2001 | D23: 22 | F23: 21 | G23: 21 | H23: 249 | I23: 11-12 | K23: 11.5 | L23: 34 | M23: 21-22 | N23: 21.5 | O23: 42 | P23: 20 | Q23: 20 | R23: 74
A24: 22 | B24: Кокурин Ярослав | C24: 1999 | D24: 37 | F24: 14 | G24: 14 | H24: 206 | I24: 22 | K24: 22 | L24: 48 | M24: 11 | N24: 11 | O24: 0 | P24: 0 | Q24: 100 | R24: 147
B37: Главный судья соревнований | K37: Беляков В.А.
B39: Главный секретарь соревнований | K39: Камалетдинов Т.О.
B40: Главный судья соревнований | K40: Беляков В.А.

Sheet ДЕВУШКИ 1999-2001
A1: ПЕРВЕНСТВО ДЮСШ "ПРИЗ ДЕДА МОРОЗА" ТЕХНИЧЕСКИЕ РЕЗУЛЬТАТЫ ДЕВУШКИ 1999-2001 г.р. 04/01/2018
A2: место | B2: Фамилия Имя | C2: год рожд. | D2: Жим лёжа (1'x25кг кол-во) | E2: место | F2: м | G2: очки | H2: Прыжок с места (3раза см) | I2: м | J2: очки | K2: очки | L2: Тяга лёжа (1'x30кг кол-во) | M2: м | N2: очки | O2: Подъём ног (1'кол-во) | P2: м | Q2: очки | R2: сумма очков
A3: 1 | B3: Давыдова Анна | C3: 2000 | D3: 77 | F3: 2 | G3: 2 | H3: 245 | I3: 1 | K3: 1 | L3: 52 | M3: 2-3 | N3: 2.5 | O3: 66 | P3: 1 | Q3: 1 | R3: =SUM(G3+K3+N3+Q3) -> 6.5
A4: 2 | B4: Фомина Александра | C4: 1999 | D4: 46 | F4: 3 | G4: 3 | H4: 218 | I4: 2 | K4: 2 | L4: 59 | M4: 1 | N4: 1 | O4: 48 | P4: 4-5 | Q4: 4.5 | R4: 10.5
A5: 3 | B5: Новикова Регина | C5: 2001 | D5: 100 | F5: 1 | G5: 1 | H5: 168 | I5: 6 | K5: 6 | L5: 52 | M5: 2-3 | N5: 2.5 | O5: 58 | P5: 2 | Q5: 2 | R5: 11.5
A6: 4 | B6: Сидорова Елизавета | C6: 1999 | D6: 45 | F6: 4 | G6: 4 | H6: 182 | I6: 4 | K6: 4 | L6: 52 | M6: 4 | N6: 4 | O6: 48 | P6: 4-5 | Q6: 4.5 | R6: 16.5
A7: 5 | B7: Крутова Мария | C7: 1999 | D7: 37 | F7: 5 | G7: 5 | H7: 188 | I7: 3 | K7: 3 | L7: 35 | M7: 5 | N7: 5 | O7: 46 | P7: 6 | Q7: 6 | R7: 19
A8: 6 | B8: Ахметгалеева Кадрия | C8: 1999 | D8: 24 | F8: 6 | G8: 6 | H8: 173 | I8: 5 | K8: 5 | L8: 24 | M8: 6 | N8: 6 | O8: 57 | P8: 3 | Q8: 3 | R8: 20
B37: Главный судья соревнований | K37: Беляков В.А.
B39: Главный секретарь соревнований | K39: Камалетдинов Т.О.
